bitfinex-derivatives/quotes_ETHF0:USTF0_20260121
["timestamp","ask_amount","ask_price","bid_price","bid_amount"]
[1769003139017,0.17084,2929.7,2928.8,1.14060183]
[1769003139216,0.17084,2929.7,2929.2,0.00512103]
[1769003139914,0.17084,2929.7,2929.2,0.00856937]
[1769003140622,4.90686836,2929.9,2928.7,3.05897847]
[1769003140823,4.90686836,2929.9,2928.5,3.05897847]
[1769003141018,3.76229219,2929.5,2928.5,3.05897847]
[1769003141220,0.17089,2928.8,2928.2,3.05897847]
[1769003141418,0.17089,2928.8,2927.9,4.28494121]
[1769003141719,1.14060183,2928.0,2926.6,3.48291584]
[1769003142021,0.17098,2927.4,2927.0,0.00512103]
[1769003142221,0.00512103,2927.6,2927.0,0.00512103]
[1769003142723,0.0089294,2927.6,2927.0,0.00844452]
[1769003146325,0.17091,2928.5,2927.0,3.77421106]
[1769003147223,0.1749375,2928.5,2927.0,3.77421106]
[1769003150021,0.00512103,2928.0,2927.2,3.76576654]
[1769003151624,0.1749375,2928.5,2927.2,3.76576654]
[1769003152527,0.17092,2928.4,2927.2,3.76576654]
[1769003155436,0.17094,2928.1,2927.0,0.00844452]
[1769003155628,0.17094,2928.0,2927.0,0.00844452]
[1769003155830,3.66964891,2928.5,2927.0,0.00844452]
[1769003156231,0.17095,2927.8,2927.0,0.00844452]
[1769003156436,0.17096,2927.7,2927.0,0.00844452]
[1769003156939,0.17087,2929.3,2927.8,3.76576654]
[1769003157237,3.66562141,2929.7,2927.9,3.76576654]
[1769003157539,0.17087,2929.2,2927.9,3.76576654]
[1769003157741,0.17517668,2929.2,2928.5,0.00512103]
[1769003158136,0.00430668,2929.2,2928.5,0.00512103]
[1769003159537,0.17089,2928.9,2927.9,3.76576654]
[1769003160838,0.17089,2928.9,2928.1,0.00512103]
[1769003161039,0.17089,2928.9,2928.1,3.59375219]
[1769003161245,0.17089,2928.9,2928.1,0.00512103]
[1769003163246,0.17089,2928.8,2928.1,0.00512103]
[1769003165943,0.1709,2928.7,2928.1,0.00512103]
[1769003166840,0.00430668,2929.2,2928.1,3.59375219]
[1769003167240,0.17517668,2929.2,2928.1,3.59375219]
[1769003167933,0.00430668,2929.2,2928.1,3.59375219]
[1769003169542,0.17089,2928.9,2928.1,3.59375219]
[1769003170745,0.00512103,2928.8,2928.1,3.59375219]
[1769003171147,0.17601103,2928.8,2928.1,3.59375219]
[1769003171548,0.00430668,2929.2,2928.1,3.59375219]
[1769003171740,0.17084,2929.7,2928.3,3.58863116]
[1769003171937,0.17084,2929.7,2928.4,3.58863116]
[1769003172141,0.17085,2929.5,2928.4,3.58863116]
[1769003172446,0.17086,2929.4,2928.4,3.58863116]
[1769003172646,0.17490571,2929.4,2928.4,3.58863116]
[1769003172844,3.9518348,2930.6,2928.7,3.58863116]
[1769003172845,0.17084,2929.8,2928.7,3.58863116]
[1769003173848,0.17425277,2929.8,2928.7,3.58863116]
[1769003176449,0.17084,2929.7,2928.7,3.58863116]
[1769003182254,0.17085,2929.5,2928.7,3.58863116]
[1769003185257,0.00341277,2929.8,2928.7,3.58863116]
[1769003185656,0.17085,2929.5,2928.7,3.58863116]
[1769003185859,0.00341277,2929.8,2928.7,3.58863116]
[1769003186356,0.00341277,2929.8,2928.8,3.47664579]
[1769003186559,0.17085,2929.5,2928.8,3.47664579]
[1769003186760,0.00341277,2929.8,2928.8,3.47664579]
[1769003187657,0.17085,2929.5,2928.8,3.47664579]
[1769003187957,0.00341277,2929.8,2928.8,3.47664579]
[1769003188663,0.17085,2929.5,2928.8,3.47664579]
[1769003190863,0.17087,2929.3,2928.7,2.4396618]
[1769003191055,0.17087,2929.3,2928.6,2.4396618]
[1769003191861,0.17087,2929.3,2928.5,2.4396618]
[1769003192256,0.17087,2929.2,2928.4,5.91630759]
[1769003193656,0.17087,2929.2,2928.5,3.47664579]
[1769003194062,0.17087,2929.2,2928.5,5.91630759]
[1769003195869,0.17087,2929.2,2928.6,3.47664579]
[1769003198258,0.17085,2929.6,2928.6,4.61757486]
[1769003198461,0.17082,2930.0,2929.1,3.47664579]
[1769003198665,0.17082,2930.0,2929.0,3.58059087]
[1769003198666,0.17082,2930.0,2929.3,3.48176682]
[1769003199568,0.17468784,2930.0,2929.3,3.48588378]
[1769003200068,0.17468784,2930.0,2929.3,0.00923799]
[1769003200069,0.00386784,2930.0,2929.3,0.00923799]
[1769003200657,0.17085,2929.6,2929.3,0.00923799]
[1769003200857,0.00386784,2930.0,2929.4,3.47664579]
[1769003201065,0.17081,2930.2,2929.5,2.4396618]
[1769003201967,0.17433032,2930.2,2929.5,2.4396618]
[1769003202153,0.17082,2930.1,2929.4,5.91630759]
[1769003202357,0.17082,2930.0,2929.4,5.91630759]
[1769003202557,0.17082,2930.0,2929.3,0.00923799]
[1769003202558,0.17082,2930.0,2929.3,2.44889979]
[1769003203557,0.17085,2929.6,2929.0,3.47664579]
[1769003204067,0.00352032,2930.2,2929.0,3.47664579]
[1769003204569,0.00352032,2930.2,2929.0,3.48077448]
[1769003204768,0.00352032,2930.2,2929.3,0.00512103]
[1769003205166,0.00512103,2930.0,2929.3,3.48176682]
[1769003206364,0.07135382,2929.6,2929.3,3.48176682]
[1769003206566,0.00512103,2930.0,2929.3,3.48176682]
[1769003207567,0.17085,2929.6,2929.3,3.48176682]
[1769003208569,0.00512103,2930.0,2929.3,3.48176682]
[1769003209471,0.17085,2929.6,2929.3,3.48176682]
[1769003209771,0.00352032,2930.2,2929.3,3.48176682]
[1769003209969,0.17082,2930.0,2929.3,3.48176682]
[1769003214578,0.00352032,2930.2,2929.3,3.48176682]
[1769003215465,0.17082,2930.0,2929.3,3.48176682]
[1769003215672,0.17084,2929.8,2929.3,0.00512103]
[1769003217274,0.17084,2929.7,2929.3,0.00512103]
[1769003217780,0.17086,2929.4,2929.0,0.00412869]
[1769003217981,0.17086,2929.4,2928.4,2.45414612]
[1769003217982,0.17086,2929.3,2928.4,6.04325842]
[1769003218174,0.17086,2929.3,2928.5,1.14085412]
[1769003219077,0.17086,2929.3,2928.6,0.00512103]
[1769003219276,0.17087,2929.2,2928.6,0.00512103]
[1769003219881,0.17087,2929.2,2928.6,2.45926715]
[1769003220182,0.17087,2929.2,2928.6,6.04837945]
[1769003220381,0.17085,2929.5,2928.8,4.72996642]
[1769003221881,0.17085,2929.5,2928.6,2.45926715]
[1769003221882,0.00352032,2930.2,2929.5,3.5891123]
[1769003222080,0.00352032,2930.2,2929.4,1.14085412]
[1769003222081,0.00512103,2930.1,2929.8,4.72996642]
[1769003222285,0.17079,2930.5,2929.9,3.5891123]
[1769003222484,1.898,2931.2,2929.9,3.5891123]
[1769003222690,0.17079,2930.7,2929.9,3.5891123]
[1769003222982,0.17079,2930.5,2929.9,3.5891123]
[1769003223177,0.17350587,2930.5,2929.9,3.5891123]
[1769003223382,0.17350587,2930.5,2929.9,3.59423333]
[1769003223584,0.17079,2930.6,2929.9,3.59423333]
[1769003224580,0.1708,2930.5,2929.9,3.59423333]
[1769003224782,0.1708,2930.4,2929.9,3.59423333]
[1769003225388,0.13109816,2930.4,2929.9,3.59423333]
[1769003228588,1.14085412,2932.6,2929.9,3.59423333]
[1769003228589,0.17078,2930.9,2930.3,1.14085412]
[1769003228797,0.17078,2930.8,2930.3,1.14085412]
[1769003229396,0.17416161,2930.8,2930.3,1.14085412]
[1769003229597,0.17078,2930.7,2930.3,1.14085412]
[1769003229794,0.17079,2930.6,2930.2,3.5891123]
[1769003229997,0.1708,2930.5,2930.0,4.72996642]
[1769003230200,0.17081,2930.3,2929.9,0.00512103]
[1769003230594,0.17082,2930.0,2929.9,1.03e-06]
[1769003230795,0.17082,2930.0,2929.4,2.45414612]
[1769003231294,0.17082,2930.0,2929.4,3.59500024]
[1769003231903,0.17082,2930.0,2929.4,3.60012127]
[1769003232096,0.17083,2929.9,2929.4,0.00512103]
[1769003233902,0.17083,2929.9,2929.4,3.59423333]
[1769003234203,0.17081,2930.2,2929.4,4.73508745]
[1769003235403,0.17081,2930.2,2929.5,3.76636059]
[1769003235906,0.17082,2930.1,2929.5,3.76636059]
[1769003236100,0.17083,2930.0,2929.4,1.14597515]
[1769003236307,0.17086,2929.4,2928.7,2.45414612]
[1769003236506,0.17087,2929.3,2928.6,10.50544792]
[1769003236701,0.17087,2929.3,2928.6,6.22050671]
[1769003237212,0.00512103,2930.1,2928.5,0.00375686]
[1769003237213,0.17088,2929.0,2928.5,0.00375686]
[1769003238014,0.17091,2928.5,2927.7,3.76636059]
[1769003238703,0.00512103,2928.4,2927.7,3.76636059]
[1769003239104,0.17092,2928.3,2927.8,0.00512103]
[1769003239408,0.17093,2928.2,2927.7,0.00336508]
[1769003240205,0.17094,2928.0,2927.2,3.76636059]
[1769003240409,0.17094,2928.0,2926.8,13.25836059]
[1769003240611,0.17094,2928.0,2926.8,3.76636059]
[1769003241206,0.17095,2927.9,2926.8,3.76887566]
[1769003241915,0.17095,2927.8,2926.8,3.76887566]
[1769003242511,0.17098,2927.4,2926.8,0.00251507]
[1769003243611,0.00791077,2928.4,2926.8,3.76887566]
[1769003243810,0.17095,2927.8,2926.8,3.76887566]
[1769003244014,0.17096,2927.7,2926.8,3.76887566]
[1769003244417,0.17096,2927.6,2926.8,3.76887566]
[1769003244617,0.17096,2927.6,2926.8,0.00251507]
[1769003246617,0.17097,2927.5,2926.8,0.00251507]
[1769003246813,0.17098,2927.3,2926.8,0.00251507]
[1769003247014,3.43457909,2928.3,2926.8,3.76887566]
[1769003247215,0.17096,2927.6,2926.8,3.76887566]
[1769003248013,3.43457909,2928.2,2926.8,0.00251507]
[1769003248421,0.17098,2927.4,2926.8,0.00251507]
[1769003248825,0.17098,2927.3,2926.4,3.76636059]
[1769003249822,3.43457909,2928.2,2926.4,3.7698047]
[1769003250013,0.17095,2927.8,2926.4,3.7698047]
[1769003254629,0.17096,2927.6,2926.4,3.7698047]
[1769003254830,3.44248986,2928.4,2926.4,3.7698047]
[1769003255327,0.17098,2927.3,2926.4,3.7698047]
[1769003260629,3.44248986,2928.4,2926.4,3.7698047]
[1769003260630,0.17099,2927.2,2926.4,3.7698047]
[1769003261237,3.43457909,2928.0,2926.4,3.7698047]
[1769003261238,0.171,2927.1,2926.4,0.00344411]
[1769003261625,0.171,2926.9,2926.4,0.00344411]
[1769003261819,0.17101,2926.8,2925.8,40.8]
[1769003262127,0.17102,2926.6,2925.3,2.4351192]
[1769003262321,0.17103,2926.5,2925.1,2.4351192]
[1769003262520,0.00512103,2926.6,2925.2,40.8]
[1769003262521,0.17104,2926.3,2925.2,40.8]
[1769003262727,0.17105,2926.2,2925.2,40.80297585]
[1769003263432,0.17105,2926.2,2925.2,0.00297585]
[1769003264635,0.17106,2925.9,2925.2,0.00297585]
[1769003265229,0.00262826,2926.3,2925.2,3.76933644]
[1769003267328,0.17105,2926.2,2925.2,3.76933644]
[1769003267927,0.00262826,2926.3,2925.2,0.00297585]
[1769003268131,0.17106,2926.0,2925.2,0.00297585]
[1769003271135,0.00512103,2926.6,2925.2,3.61154803]
[1769003272145,0.00762242,2926.6,2925.2,3.61154803]
[1769003272647,0.17865242,2926.6,2925.2,3.61154803]
[1769003273941,0.17103,2926.4,2925.2,3.61154803]
[1769003274449,0.17104,2926.3,2925.2,3.61154803]
[1769003274649,0.00762242,2926.6,2925.2,3.61154803]
[1769003276652,0.17105,2926.1,2925.2,3.61154803]
[1769003280350,0.17105,2926.1,2925.4,0.00512103]
[1769003280648,0.17105,2926.1,2925.4,3.6069494]
[1769003281659,0.17106,2926.0,2925.4,0.00512103]
[1769003281959,0.17106,2925.9,2925.4,0.00512103]
[1769003282557,0.17111,2925.2,2923.9,3.60182837]
[1769003282748,3.71727722,2925.8,2923.9,3.60182837]
[1769003283060,0.1711,2925.3,2924.2,3.85635677]
[1769003283547,0.17111,2925.2,2924.2,3.85900761]
[1769003283747,1.9,2926.3,2924.2,9.24e-06]
[1769003283748,0.17114,2924.6,2924.2,9.24e-06]
[1769003283952,0.17114,2924.6,2923.5,40.8]
[1769003284154,0.17114,2924.6,2923.5,44.40182837]
[1769003284349,0.17114,2924.6,2923.5,3.60182837]
[1769003284957,0.00512103,2925.0,2923.5,3.60505699]
[1769003285155,0.00512103,2925.0,2923.6,3.60182837]
[1769003285356,3.71727722,2925.9,2923.7,2.4351192]
[1769003285553,3.71727722,2925.9,2924.0,3.60182837]
[1769003286060,0.17109,2925.4,2924.0,3.60182837]
[1769003286660,0.00512996,2925.0,2924.0,3.60182837]
[1769003289462,0.17111,2925.2,2924.0,3.60182837]
[1769003291466,3.71727722,2926.3,2924.4,3.60182837]
[1769003291467,0.17107,2925.8,2924.4,3.60182837]
[1769003291655,0.17107,2925.7,2924.4,3.60182837]
[1769003291852,0.17107,2925.7,2924.5,3.60182837]
[1769003292465,0.17107,2925.7,2924.6,3.60182837]
[1769003292666,0.17105,2926.2,2924.7,3.60182837]
[1769003292871,0.00250139,2926.6,2924.7,3.60182837]
[1769003292872,0.00250139,2926.6,2925.0,6.03694757]
[1769003293060,0.00250139,2926.6,2925.1,6.03694757]
[1769003293366,0.00250139,2926.6,2925.2,3.60182837]
[1769003293758,0.00250139,2926.6,2925.2,6.03694757]
[1769003293972,0.00250139,2926.6,2925.3,6.03694757]
[1769003294466,0.00512996,2926.2,2925.3,6.03694757]
[1769003295367,0.00512996,2926.2,2925.1,43.2351192]
[1769003295667,0.00512996,2926.2,2924.8,3.60182837]
[1769003295668,0.17617996,2926.2,2924.9,2.4351192]
[1769003295864,0.00512996,2926.2,2924.9,2.4351192]
[1769003296069,0.00512996,2926.2,2924.5,8.7765382]
[1769003296070,0.17107,2925.7,2924.5,8.7765382]
[1769003296269,0.17107,2925.7,2924.6,5.72585565]
[1769003296468,0.17107,2925.7,2924.7,3.29073645]
[1769003296874,0.17107,2925.7,2924.7,5.72585565]
[1769003297163,0.17107,2925.7,2924.8,5.72585565]
[1769003297368,0.00512996,2926.2,2924.8,5.72585565]
[1769003297369,0.00512996,2926.2,2924.9,3.29073645]
[1769003298472,0.17107,2925.7,2924.9,3.29073645]
[1769003299270,0.17107,2925.7,2924.8,2.4351192]
[1769003299466,0.17107,2925.7,2924.6,2.4351192]
[1769003299771,0.17107,2925.7,2924.6,5.72585565]
[1769003299968,0.17107,2925.7,2924.7,5.72585565]
[1769003300769,0.17107,2925.7,2924.7,3.29073645]
[1769003301567,0.17617996,2926.2,2925.0,3.29073645]
[1769003302272,0.00250139,2926.6,2925.0,3.29073645]
[1769003302470,0.17105,2926.2,2925.3,3.29073645]
[1769003302870,0.00250139,2926.6,2925.3,3.29073645]
[1769003303476,0.00250139,2926.6,2925.3,5.72585565]
[1769003304072,0.00250139,2926.6,2925.3,3.29073645]
[1769003304578,0.17105,2926.2,2925.3,3.29073645]
[1769003304774,0.17106,2926.1,2925.1,2.4351192]
[1769003305174,0.17106,2926.1,2925.0,2.4351192]
[1769003305480,3.47592054,2926.6,2924.9,2.4351192]
[1769003305680,0.17106,2925.9,2924.9,5.72585565]
[1769003305880,0.17106,2925.9,2925.0,3.29073645]
[1769003306179,0.17103,2926.4,2925.3,3.29073645]
[1769003307683,0.17103,2926.4,2925.4,3.29073645]
[1769003307884,0.171,2926.9,2925.6,3.29073645]
[1769003308176,3.47341915,2927.9,2925.8,3.29073645]
[1769003308370,0.17098,2927.3,2925.8,5.72585565]
[1769003308571,0.17098,2927.3,2925.9,3.29073645]
[1769003308774,3.47341915,2927.9,2925.9,3.29073645]
[1769003308970,0.17099,2927.3,2925.9,3.29373258]
[1769003309180,0.17099,2927.3,2926.6,0.00512996]
[1769003310586,0.00440339,2927.9,2926.6,0.00512996]
[1769003311579,0.17098,2927.3,2926.6,0.00512996]
[1769003311972,3.47341915,2927.4,2926.6,9.96e-06]
[1769003312176,0.17101,2926.8,2926.6,9.96e-06]
[1769003312778,0.17101,2926.8,2925.9,0.00299613]
[1769003313976,0.17101,2926.8,2926.1,0.00512996]
[1769003314887,0.17102,2926.7,2926.1,0.00512996]
[1769003316687,3.47341915,2927.4,2926.1,0.00512996]
[1769003316886,0.171,2927.1,2926.1,0.00512996]
[1769003317088,3.47782254,2927.9,2926.1,3.29586641]
[1769003317288,0.17099,2927.3,2926.1,3.29586641]
[1769003317686,3.47341915,2927.4,2926.1,0.00512996]
[1769003317986,0.17102,2926.6,2926.1,0.00512996]
[1769003319382,0.17103,2926.4,2926.1,9.96e-06]
[1769003319579,1.9,2927.8,2925.1,2.4351192]
[1769003319580,0.17106,2926.0,2925.1,2.4351192]
[1769003319883,0.17106,2925.9,2924.9,2.4351192]
[1769003320494,0.17106,2925.9,2925.0,2.4351192]
[1769003320883,3.47341915,2926.5,2924.9,2.43814249]
[1769003321194,0.17109,2925.5,2924.9,0.00302329]
[1769003321384,0.17358013,2925.5,2924.9,0.00302329]
[1769003321578,0.17109,2925.4,2924.5,2.4351192]
[1769003321794,0.17109,2925.4,2924.4,2.4351192]
[1769003322086,0.17109,2925.4,2924.5,2.4351192]
[1769003322492,0.00249013,2925.5,2924.5,2.4351192]
[1769003322682,0.17106,2926.0,2924.7,5.72585565]
[1769003322887,0.17106,2926.0,2924.8,2.4351192]
[1769003323087,0.17106,2925.9,2924.8,2.4351192]
[1769003323387,3.47341915,2926.3,2924.7,2.0665692]
[1769003323592,3.47341915,2925.6,2924.1,4.28494121]
[1769003323793,3.47341915,2925.6,2923.8,6.341419]
[1769003324194,0.17111,2925.0,2923.9,3.29073645]
[1769003324695,0.17111,2925.0,2923.9,3.2942472]
[1769003324993,3.47341915,2925.5,2923.9,3.2942472]
[1769003325193,3.47341915,2925.5,2923.9,0.00351075]
[1769003325392,3.45817901,2925.3,2923.9,0.00351075]
[1769003325895,0.17113,2924.7,2923.9,0.00351075]
[1769003326392,3.45817901,2925.3,2923.9,7.5e-07]
[1769003326597,3.45817901,2924.9,2922.6,6.76911473]
[1769003326799,3.45817901,2924.9,2922.7,3.71843218]
[1769003327389,0.17118,2924.0,2922.7,3.71843218]
[1769003327593,0.17422048,2924.0,2922.7,3.72256413]
[1769003330000,1.22149081,2925.7,2922.7,3.72256413]
[1769003330001,0.17113,2924.7,2922.7,3.72256413]
[1769003330195,0.17114,2924.6,2922.9,3.71843218]
[1769003331100,0.17460075,2924.6,2922.9,3.71843218]
[1769003331703,0.17115,2924.5,2922.9,3.71843218]
[1769003331999,0.17115,2924.4,2922.9,3.71843218]
[1769003332301,0.17116,2924.3,2922.9,3.71843218]
[1769003336699,0.17116,2924.3,2922.7,0.00413195]
[1769003336700,3.45817901,2924.2,2922.7,0.00413195]
[1769003336902,0.1712,2923.6,2922.7,0.00413195]
[1769003337407,3.45817901,2924.1,2923.2,9.96e-06]
[1769003338104,0.17121,2923.5,2923.2,9.96e-06]
[1769003338406,0.17121,2923.5,2922.7,0.00413195]
[1769003339102,0.17121,2923.4,2922.7,0.00413195]
[1769003339504,0.17122,2923.3,2922.7,0.00413195]
[1769003339704,0.17122,2923.2,2922.7,0.00413195]
[1769003339901,3.45817901,2924.1,2922.1,4.514]
[1769003340410,0.17124,2923.0,2922.1,4.514]
[1769003340598,0.17124,2923.0,2921.4,0.17132]
[1769003340599,0.17125,2922.8,2921.2,2.43696812]
[1769003340796,0.17125,2922.8,2920.8,1.68756615]
[1769003340797,0.17131,2921.7,2920.3,3.65277487]
[1769003340996,0.17415401,2921.7,2920.5,4.55348448]
[1769003341403,0.17415401,2921.7,2920.5,0.90070961]
[1769003341711,0.17132,2921.6,2920.5,0.90070961]
[1769003341909,0.17128,2922.3,2920.5,4.55348448]
[1769003342601,0.17123,2923.0,2921.0,3.65277487]
[1769003342801,0.17123,2923.0,2921.2,3.65277487]
[1769003343005,0.17455573,2923.0,2921.2,3.65277487]
[1769003346106,0.00332573,2923.0,2921.2,3.82410487]
[1769003346303,0.00332573,2923.0,2921.6,3.65277487]
[1769003346504,0.00332573,2923.0,2921.7,44.45277487]
[1769003346806,0.00332573,2923.0,2921.8,3.65277487]
[1769003348405,0.17117,2924.0,2921.9,3.65277487]
[1769003348599,0.17117,2924.0,2922.6,3.65277487]
[1769003349607,0.17475017,2924.0,2922.6,3.65579089]
[1769003354214,0.00358017,2924.0,2922.6,3.65579089]
[1769003354418,0.00358017,2924.0,2922.8,3.65277487]
[1769003354914,0.17114,2924.6,2922.8,3.65277487]
[1769003354915,0.17114,2924.6,2922.8,6.26098299]
[1769003355113,0.17114,2924.6,2923.1,3.65277487]
[1769003355312,0.17111,2925.2,2923.3,3.46626139]
[1769003355512,1.68756615,2926.6,2923.8,3.46626139]
[1769003355513,0.17107,2925.9,2923.8,3.46626139]
[1769003355718,0.17107,2925.8,2923.9,3.46626139]
[1769003355912,0.17107,2925.7,2923.9,3.46626139]
[1769003356113,0.17108,2925.6,2923.9,3.46626139]
[1769003357211,0.1711,2925.4,2923.9,3.46626139]
[1769003357411,3.63743609,2925.8,2923.9,3.46626139]
[1769003357612,3.63392682,2925.6,2923.7,2.43696812]
[1769003357818,0.17111,2925.2,2923.6,5.90322951]
[1769003358010,0.17111,2925.2,2923.7,5.90322951]
[1769003358213,0.17111,2925.2,2923.8,3.46626139]
[1769003359522,0.00350927,2925.8,2923.8,3.46626139]
[1769003359919,0.17108,2925.6,2923.8,3.46626139]
[1769003361020,0.17108,2925.6,2924.1,3.46626139]
[1769003361927,0.17108,2925.6,2924.2,40.8]
[1769003362122,0.17108,2925.6,2924.3,3.46626139]
[1769003362521,0.00350927,2925.8,2924.3,3.46626139]
[1769003362720,0.00350927,2925.8,2924.6,3.46626139]
[1769003364027,0.17108,2925.7,2924.2,44.26626139]
[1769003364825,0.00350927,2925.8,2924.2,3.46626139]
[1769003366630,0.17109,2925.5,2924.2,3.46626139]
[1769003371535,0.00350927,2925.8,2924.2,3.63742139]
[1769003374134,0.00350927,2925.8,2924.3,3.46626139]
[1769003375327,0.00350927,2925.8,2924.3,3.63741139]
[1769003375525,0.00350927,2925.8,2924.8,0.00512996]
[1769003375730,0.00350927,2925.8,2924.8,0.00869135]
[1769003381941,0.00350927,2925.8,2924.8,3.47495274]
[1769003384050,0.00350927,2925.8,2925.0,2.43696812]
[1769003384347,0.00350927,2925.8,2925.1,2.43696812]
[1769003385340,0.00350927,2925.8,2925.2,2.43696812]
[1769003386338,0.00350927,2925.8,2925.0,2.43696812]
[1769003388243,0.00350927,2925.8,2924.9,2.43696812]
[1769003389243,0.00512996,2925.6,2925.0,2.43696812]
[1769003390343,0.00350927,2925.8,2925.0,6.08107334]
[1769003390546,0.17104,2926.3,2925.2,3.64410522]
[1769003390749,0.17104,2926.3,2925.3,2.43696812]
[1769003391754,0.17379902,2926.3,2925.3,2.43696812]
[1769003392740,0.17379902,2926.3,2925.2,6.08107334]
[1769003392942,0.17379902,2926.3,2925.3,2.43696812]
[1769003393145,0.17379902,2926.3,2925.2,6.08107334]
[1769003394351,0.00512996,2926.0,2925.2,6.08107334]
[1769003399356,0.00512996,2926.0,2925.3,2.43696812]
[1769003405255,0.17108,2925.7,2924.9,2.43696812]
[1769003405449,0.17108,2925.6,2924.8,6.73060068]
[1769003405648,0.17111,2925.0,2924.5,2.43696812]
[1769003405960,0.17113,2924.7,2924.1,2.43696812]
[1769003406153,0.17113,2924.7,2923.8,5.48765067]
[1769003406354,0.17113,2924.7,2923.5,6.64099474]
[1769003406559,0.17113,2924.7,2923.5,3.59031219]
[1769003406753,0.17113,2924.7,2923.5,3.59403773]
[1769003407255,0.17111,2925.2,2923.7,3.59031219]
[1769003407450,0.17111,2925.2,2924.0,3.59031219]
[1769003407761,0.00512996,2924.9,2924.2,3.59544215]
[1769003408151,0.17624996,2924.9,2924.2,0.00512996]
[1769003409153,0.17114,2924.7,2924.2,0.00512996]
[1769003409857,0.15360895,2924.7,2924.2,3.59544215]
[1769003410556,0.00512996,2924.9,2924.2,3.59544215]
[1769003410752,0.1711,2925.3,2924.2,3.59544215]
[1769003411459,0.1711,2925.2,2924.2,3.59544215]
[1769003411655,0.1711,2925.2,2924.2,0.00512996]
[1769003411856,3.67786728,2925.6,2924.2,0.00512996]
[1769003413153,0.17112,2925.0,2924.2,3.59544215]
[1769003413359,0.17109,2925.4,2924.2,3.59544215]
[1769003413962,0.1711,2925.3,2924.2,3.59544215]
[1769003417063,0.1711,2925.2,2924.2,3.59544215]
[1769003417360,0.17112,2924.9,2924.2,0.00512996]
[1769003417762,0.17113,2924.8,2924.2,0.00512996]
[1769003422157,3.37914604,2925.5,2924.2,0.00512996]
[1769003422361,0.17115,2924.5,2924.2,9.96e-06]
[1769003422566,0.17115,2924.5,2923.5,0.00372554]
[1769003423967,0.17115,2924.5,2923.7,0.00512996]
[1769003426066,0.17115,2924.4,2923.7,0.00512996]
[1769003430074,0.17116,2924.3,2923.7,0.00512996]
[1769003430471,0.17116,2924.2,2923.7,0.00512996]
[1769003430971,0.17491325,2924.2,2923.7,0.00512996]
[1769003432371,0.00375325,2924.2,2923.5,0.00372554]
[1769003432574,0.17118,2924.0,2922.8,9.509]
[1769003432776,0.17118,2923.9,2922.8,9.509]
[1769003433678,0.17118,2923.9,2922.8,9.51274602]
[1769003434278,0.17118,2923.9,2922.8,12.56342857]
[1769003436278,0.17119,2923.7,2922.8,9.51274602]
[1769003439080,0.00375325,2924.2,2922.9,3.4906571]
[1769003439271,0.17117,2924.1,2922.9,3.4906571]
[1769003441370,0.1712,2923.6,2922.8,0.00374602]
[1769003442381,0.1712,2923.5,2922.8,0.00374602]
[1769003447786,0.17122,2923.2,2922.8,0.00374602]
[1769003448086,0.17122,2923.2,2922.1,12.97895062]
[1769003448993,0.17122,2923.2,2922.1,12.98135969]
[1769003449284,0.00512996,2923.3,2922.2,3.46795062]
[1769003457195,0.00512996,2923.3,2922.1,3.47035969]
[1769003457399,0.00512996,2923.3,2922.5,0.00512996]
[1769003461404,0.00512996,2923.3,2922.5,3.6262801]
[1769003461611,0.00138394,2923.3,2922.6,3.62115014]
[1769003461805,0.17117,2924.0,2922.6,3.62115014]
[1769003462003,0.00375325,2924.2,2922.9,3.62115014]
[1769003462311,0.00375325,2924.2,2923.3,3.62115014]
[1769003462811,0.00375325,2924.2,2923.3,6.07954569]
[1769003463510,0.00512996,2924.0,2923.3,6.07954569]
[1769003463905,0.00512996,2924.0,2923.3,2.45839555]
[1769003464910,0.17114,2924.5,2923.8,1.14484233]
[1769003465213,0.17112,2924.9,2923.8,1.14484233]
[1769003465414,0.17113,2924.8,2923.8,1.14484233]
[1769003465610,0.17113,2924.8,2923.5,1.14484233]
[1769003465809,0.17545073,2924.8,2923.5,1.14484233]
[1769003466010,0.17545073,2924.8,2923.9,0.00512996]
[1769003470216,0.17113,2924.7,2923.9,0.00512996]
[1769003471313,0.17117,2924.1,2923.4,2.45839555]
[1769003471521,0.17119,2923.8,2922.8,6.74333676]
[1769003471720,0.17119,2923.8,2922.6,4.76599247]
[1769003472221,0.17119,2923.8,2922.9,1.14484233]
[1769003472616,0.17119,2923.8,2923.1,0.00512996]
[1769003478421,0.17119,2923.7,2923.1,0.00512996]
[1769003479120,3.47795286,2924.1,2922.6,1.14484233]
[1769003479420,0.17121,2923.4,2922.6,1.14484233]
[1769003479818,3.47795286,2923.2,2922.1,0.00240907]
[1769003480123,0.17125,2922.8,2922.1,0.00240907]
[1769003480917,0.17125,2922.8,2922.2,0.00512996]
[1769003486624,0.17125,2922.7,2921.4,2.45839555]
[1769003486824,0.17126,2922.6,2921.3,11.97139555]
[1769003487323,0.17126,2922.5,2921.3,9.513]
[1769003487630,0.1742837,2922.5,2921.3,9.51694947]
[1769003488824,0.00512996,2922.9,2921.6,5.37672636]
[1769003489024,0.00512996,2922.9,2921.7,3.68336108]
[1769003489625,0.00512996,2922.9,2921.8,3.68336108]
[1769003489836,0.00825025,2922.9,2921.8,6.14175663]
[1769003490024,0.00825025,2922.9,2921.9,3.68336108]
[1769003492635,0.17126,2922.6,2921.6,0.00512996]
[1769003492935,0.00825025,2922.9,2921.7,3.68336108]
[1769003495535,0.17123,2923.1,2921.7,3.68336108]
[1769003496431,0.17123,2923.1,2921.9,3.68336108]
[1769003496633,0.17119,2923.7,2921.9,3.68336108]
[1769003496833,0.1712,2923.5,2921.9,3.68336108]
[1769003497028,0.1712,2923.5,2921.9,6.14175663]
[1769003497233,0.1712,2923.5,2922.0,3.68336108]
[1769003497634,0.1712,2923.5,2922.2,3.68336108]
[1769003497836,0.17386729,2923.5,2922.2,3.68336108]
[1769003498638,0.00512996,2923.1,2922.2,3.68336108]
[1769003498946,0.00266729,2923.5,2922.4,3.68336108]
[1769003499737,1.22149081,2925.1,2922.4,3.68336108]
[1769003499738,0.17114,2924.6,2922.8,3.68336108]
[1769003500046,0.17114,2924.5,2922.8,3.68336108]
[1769003500351,0.17114,2924.5,2923.4,0.00512996]
[1769003500541,0.17114,2924.5,2923.4,3.68849104]
[1769003500731,0.17114,2924.5,2923.4,3.69288523]
[1769003500732,0.17531092,2924.5,2923.4,3.69288523]
[1769003503438,0.17531092,2924.5,2922.9,2.45839555]
[1769003503439,3.47795286,2923.8,2922.9,2.45839555]
[1769003503644,3.47795286,2923.8,2922.7,2.45839555]
[1769003503940,0.17118,2923.9,2922.6,2.45839555]
[1769003504545,0.00417092,2924.5,2923.0,0.00512996]